[Event "WTCC-65 2018"]
[Site "Radebeul"]
[Date "2018.07.09"]
[Round "3"]
[White "Zhelnin, Vladimir V"]
[Black "Malmdin, Nils Ake"]
[Result "1/2-1/2"]
[ECO "B08"]
[WhiteElo "2453"]
[BlackElo "2138"]
[Annotator "ChessBase"]
[PlyCount "140"]
[EventDate "2018.07.07"]
[EventType "team-tourn"]
[EventCountry "GER"]
[SourceTitle "playchess.com"]
[Source "ChessBase"]
[SourceQuality "1"]
[TimeControl "40/5400+30:1800+30"]

1. e4 {[%emt 0:00:00]} g6 {[%emt 0:00:00]} 2. d4 {[%emt 0:00:28]} Bg7 {[%emt 0:00:08]} 3. Nf3 {[%emt 0:01:58]} d6 {[%emt 0:05:56]} 4. Be2 {[%emt 0:02:48]} Nf6 {[%emt 0:05:11]} 5. Nc3 {[%emt 0:00:15]} O-O {[%emt 0:00:17]} 6. O-O {[%emt 0:00:17]} Nc6 {[%emt 0:01:30]} 7. d5 {[%emt 0:04:22]} Nb8 {[%emt 0:00:12]} 8. Re1 {[%emt 0:01:49]} e5 {[%emt 0:06:34]} 9. dxe6 {[%emt 0:00:12]} Bxe6 {[%emt 0:00:12]} 10. Nd4 {[%emt 0:00:45]} Bd7 {[%emt 0:00:10]} 11. Bg5 {[%emt 0:03:28]} h6 {[%emt 0:00:57]} 12. Bh4 {[%emt 0:00:30]} Nc6 {[%emt 0:00:40]} 13. Nxc6 {[%emt 0:01:33]} Bxc6 {[%emt 0:01:33]} 14. Bd3 {[%emt 0:01:20]} Qd7 {[%emt 0:13:32]} 15. f3 {[%emt 0:07:25]} b5 {[%emt 0:16:46]} 16. Qd2 {[%emt 0:04:48]} g5 {[%emt 0:06:30]} 17. Bf2 {[%emt 0:01:43]} Nh5 {[%emt 0:00:28]} 18. Bf1 {[%emt 0:04:28]} Nf4 {[%emt 0:12:56]} 19. Bd4 {[%emt 0:05:43]} f6 {[%emt 0:00:49]} 20. Rad1 {[%emt 0:07:29]} a6 {[%emt 0:02:07]} 21. Be3 {[%emt 0:04:07]} Ng6 {[%emt 0:01:00]} 22. Ne2 {[%emt 0:02:33]} g4 {[%emt 0:05:35]} 23. fxg4 {[%emt 0:12:38]} Qxg4 {[%emt 0:01:17]} 24. Ng3 {[%emt 0:00:33]} Kh7 {[%emt 0:02:55]} 25. Be2 {[%emt 0:10:55]} Qd7 {[%emt 0:00:45]} 26. h3 {[%emt 0:01:56]} Ne5 {[%emt 0:00:52]} 27. b3 {[%emt 0:00:14]} Rg8 {[%emt 0:00:40]} 28. Bf4 {[%emt 0:03:20]} f5 {[%emt 0:05:06]} 29. exf5 {[%emt 0:05:19]} Bf6 {[%emt 0:00:46]} 30. Bh5 {[%emt 0:01:59]} Rxg3 {[%emt 0:06:49]} 31. Bxg3 {[%emt 0:00:15]} Qxf5 {[%emt 0:00:17]} 32. Bxe5 {[%emt 0:03:17]} Bxe5 {[%emt 0:00:21]} 33. Qd3 {[%emt 0:00:19]} Qxd3 {[%emt 0:00:21]} 34. Rxd3 {[%emt 0:00:08]} Rg8 {[%emt 0:00:49]} 35. Bf3 {[%emt 0:00:35]} Be8 {[%emt 0:00:26]} 36. Bb7 {[%emt 0:03:37]} a5 {[%emt 0:00:57]} 37. Bd5 {[%emt 0:00:44]} Rg7 {[%emt 0:00:43]} 38. c4 {[%emt 0:00:57]} b4 {[%emt 0:00:48]} 39. Be4+ {[%emt 0:00:47]} Kg8 {[%emt 0:01:05]} 40. Rd5 {[%emt 0:01:37]} a4 {[%emt 0:00:45]} 41. Ra5 {[%emt 0:32:17]} axb3 {[%emt 0:07:11]} 42. axb3 {[%emt 0:00:00]} Re7 {[%emt 0:00:50]} 43. Re2 {[%emt 0:00:00]} Kg7 {[%emt 0:00:45]} 44. Bf3 {[%emt 0:00:00]} Bg6 {[%emt 0:02:20]} 45. g4 {[%emt 0:00:00]} Bd3 {[%emt 0:02:38]} 46. Rd2 {[%emt 0:00:00]} Bg6 {[%emt 0:00:23]} 47. Kg2 {[%emt 0:00:00]} Be8 {[%emt 0:03:48]} 48. Re2 {[%emt 0:00:00]} Bg6 {[%emt 0:00:11]} 49. Ra8 {[%emt 0:00:00]} Be8 {[%emt 0:00:39]} 50. h4 {[%emt 0:00:00]} Bg6 {[%emt 0:01:45]} 51. Bc6 {[%emt 0:00:00]} Rf7 {[%emt 0:02:10]} 52. Rc8 {[%emt 0:00:00]} Bd3 {[%emt 0:02:19]} 53. Rf2 {[%emt 0:01:35]} Re7 {[%emt 0:03:06]} 54. Rff8 {[%emt 0:01:56]} Bc2 {[%emt 0:01:18]} 55. Rh8 {[%emt 0:01:39]} Bh7 {[%emt 0:00:34]} 56. Rhe8 {[%emt 0:01:10]} Rxe8 {[%emt 0:06:26]} 57. Rxe8 {[%emt 0:00:20]} Bc2 {[%emt 0:00:47]} 58. Re7+ {[%emt 0:01:06]} Kf6 {[%emt 0:00:09]} 59. Rxc7 {[%emt 0:00:02]} Bxb3 {[%emt 0:00:21]} 60. Be4 {[%emt 0:01:24]} Bd1 {[%emt 0:00:16]} 61. Rb7 {[%emt 0:00:51]} b3 {[%emt 0:00:18]} 62. c5 {[%emt 0:00:52]} dxc5 {[%emt 0:00:21]} 63. Rb6+ {[%emt 0:00:01]} Ke7 {[%emt 0:01:10]} 64. Bd5 {[%emt 0:00:39]} b2 {[%emt 0:00:54]} 65. g5 {[%emt 0:00:47]} hxg5 {[%emt 0:00:07]} 66. hxg5 {[%emt 0:00:01]} Bc2 {[%emt 0:01:11]} 67. Ba2 {[%emt 0:00:10]} c4 {[%emt 0:01:25]} 68. Bxc4 {[%emt 0:01:14]} b1=Q 69. Rxb1 Bxb1 {[%emt 0:00:57]} 70. Kf3 {[%emt 0:00:40]} Bg6 {[%emt 0:00:35] Ke4} 1/2-1/2

[Event "WTCC-65 2018"]
[Site "Radebeul"]
[Date "2018.07.09"]
[Round "3"]
[White "Seret, Jean-Luc"]
[Black "Bosbach, Gerhard"]
[Result "1/2-1/2"]
[ECO "B40"]
[WhiteElo "2353"]
[BlackElo "2161"]
[Annotator "NA"]
[PlyCount "47"]
[EventDate "2018.07.07"]
[EventType "team-tourn"]
[EventCountry "GER"]
[SourceTitle "playchess.com"]
[Source "ChessBase"]
[SourceQuality "1"]
[TimeControl "40/5400+30:1800+30"]

1. e4 {[%emt 0:00:00]} c5 {[%emt 0:00:00]} 2. Nf3 {[%emt 0:00:06]} e6 {[%emt 0:00:22]} 3. c3 {[%emt 0:02:12]} Nf6 {[%emt 0:04:06]} 4. d3 {[%emt 0:02:54]} d5 {[%emt 0:04:23]} 5. Qe2 {[%emt 0:00:30] B40: Sicilian: 2...e6, Unusual lines} (5. e5 Nfd7 6. d4 Nc6 7. Be2 f6 8. exf6 Nxf6 9. O-O Bd6 10. Be3 cxd4 11. cxd4 O-O 12. Nc3 a6 {½-½ (24) Zvjaginsev,V (2676)-Khairullin,I (2637) Belgorod 2010}) 5... Be7 {[%emt 0:03:50]} 6. e5 {[%emt 0:00:54]} Nfd7 {[%emt 0:00:08]} 7. g3 {[%emt 0:00:55]} Nc6 {[%emt 0:01:47]} 8. h4 {[%emt 0:00:37]} h6 {[%emt 0:06:35]} 9. Bg2 {[%emt 0:02:34]} b5 {[%emt 0:01:36]} 10. O-O {[%emt 0:03:06]} Nb6 {[%emt 0:03:37]} 11. Be3 $146 {[%emt 0:10:49]} ({Predecessor:} 11. d4 cxd4 12. Nxd4 Nxd4 13. cxd4 {0-1 (48) Dumont,S (2341)-Giaccio,A (2479) Sao Paulo 2004}) 11... a6 {[%emt 0:05:00]} 12. d4 {[%emt 0:06:45]} cxd4 {[%emt 0:03:18]} 13. Nxd4 {[%emt 0:07:19]} Nxe5 {[%emt 0:06:58]} 14. Bxh6 {[%emt 0:03:52]} Rxh6 {[%emt 0:03:07]} 15. Qxe5 {[%emt 0:00:09]} Bf6 {[%emt 0:01:03]} 16. Qe2 {[%emt 0:01:21]} Kf8 {[%emt 0:02:16]} 17. Nd2 {[%emt 0:00:56]} e5 {[%emt 0:02:47]} 18. Nc2 {[%emt 0:02:19]} Be6 {[%emt 0:18:06]} 19. Ne3 {[%emt 0:03:47]} Qc8 $11 {[%emt 0:03:30]} 20. Bf3 {[%emt 0:07:22]} Rg6 {[%emt 0:08:27]} 21. Bh5 {[%emt 0:01:41]} Rh6 {[%emt 0:01:02]} 22. Bg4 {[%emt 0:05:46]} Be7 {[%emt 0:05:32]} 23. Bxe6 {[%emt 0:06:29]} Rxe6 {[%emt 0:00:14]} 24. Nb3 {[%emt 0:02:09]} 1/2-1/2

[Event "WTCC-65 2018"]
[Site "Radebeul"]
[Date "2018.07.09"]
[Round "3"]
[White "Schmidt, Bodo"]
[Black "Postler, Reinhard"]
[Result "1/2-1/2"]
[ECO "D00"]
[WhiteElo "2344"]
[BlackElo "2243"]
[Annotator "NA"]
[PlyCount "42"]
[EventDate "2018.07.07"]
[EventType "team-tourn"]
[EventCountry "GER"]
[SourceTitle "playchess.com"]
[Source "ChessBase"]
[SourceQuality "1"]
[TimeControl "40/5400+30:1800+30"]

1. d4 {[%emt 0:00:00]} d5 {[%emt 0:00:00]} 2. Bf4 {[%emt 0:00:00]} Nf6 {[%emt 0:00:00]} 3. e3 {[%emt 0:00:00]} e6 {[%emt 0:00:27]} 4. Nd2 {[%emt 0:00:07]} c5 {[%emt 0:01:03]} 5. c3 {[%emt 0:00:45]} Nc6 {[%emt 0:01:07]} 6. Ngf3 {[%emt 0:00:22]} Bd6 {[%emt 0:02:29]} 7. Bg3 {[%emt 0:00:08]} O-O {[%emt 0:02:02]} 8. Bd3 {[%emt 0:00:37]} b6 {[%emt 0:01:24]} 9. Ne5 {[%emt 0:01:20]} Bb7 {[%emt 0:01:11]} 10. f4 {[%emt 0:00:59]} Ne7 {[%emt 0:03:53]} 11. Qf3 {[%emt 0:05:11]} Nf5 {[%emt 0:03:37]} 12. Bxf5 {[%emt 0:13:50]} exf5 {[%emt 0:00:15]} 13. Bh4 {[%emt 0:00:03]} Be7 {[%emt 0:03:19]} 14. Bxf6 {[%emt 0:04:31]} Bxf6 {[%emt 0:04:16]} 15. h3 {[%emt 0:07:19]} Be7 {[%emt 0:04:00]} 16. O-O-O {[%emt 0:03:25]} f6 {[%emt 0:07:32]} 17. Nd3 {[%emt 0:00:50]} Re8 {[%emt 0:03:29]} 18. g4 {[%emt 0:00:50]} Bf8 $17 {[%emt 0:00:34]} 19. Nf1 {[%emt 0:05:11]} Qe7 {[%emt 0:08:26]} 20. Nf2 {[%emt 0:01:04]} cxd4 {[%emt 0:05:53]} 21. exd4 {[%emt 0:14:41]} Qd8 1/2-1/2

[Event "WTCC-65 2018"]
[Site "Radebeul"]
[Date "2018.07.09"]
[Round "3"]
[White "Renman, Nils Gustaf"]
[Black "Sveshnikov, Evgeny"]
[Result "1/2-1/2"]
[ECO "D45"]
[WhiteElo "2343"]
[BlackElo "2464"]
[Annotator "ChessBase"]
[PlyCount "52"]
[EventDate "2018.07.07"]
[EventType "team-tourn"]
[EventCountry "GER"]
[SourceTitle "playchess.com"]
[Source "ChessBase"]
[SourceQuality "1"]
[TimeControl "40/5400+30:1800+30"]

1. d4 {[%emt 0:00:00]} d5 {[%emt 0:00:00]} 2. Nf3 {[%emt 0:00:00]} Nf6 {[%emt 0:00:00]} 3. c4 {[%emt 0:00:00]} e6 {[%emt 0:00:00]} 4. Nc3 {[%emt 0:00:00]} c6 {[%emt 0:00:03]} 5. e3 {[%emt 0:00:35]} Nbd7 {[%emt 0:00:10]} 6. Qc2 {[%emt 0:00:33]} Bd6 {[%emt 0:00:34]} 7. b3 {[%emt 0:01:42]} O-O {[%emt 0:03:09]} 8. Be2 {[%emt 0:00:17]} b6 {[%emt 0:05:14]} 9. O-O {[%emt 0:03:26]} Bb7 {[%emt 0:00:14]} 10. Bb2 {[%emt 0:00:59]} Qe7 {[%emt 0:06:31]} 11. Rad1 {[%emt 0:03:24]} Rfd8 {[%emt 0:04:52]} 12. e4 {[%emt 0:11:12]} Nxe4 {[%emt 0:01:06]} 13. Nxe4 {[%emt 0:00:49]} dxe4 {[%emt 0:00:02]} 14. Qxe4 {[%emt 0:00:20]} Nf6 {[%emt 0:00:19]} 15. Qh4 {[%emt 0:00:28]} c5 {[%emt 0:01:46]} 16. dxc5 {[%emt 0:25:01]} Bxc5 {[%emt 0:01:44]} 17. Ne5 {[%emt 0:04:19]} Ne4 {[%emt 0:18:48]} 18. Qxe7 {[%emt 0:06:01]} Bxe7 {[%emt 0:00:05]} 19. Nd3 {[%emt 0:07:11]} Bf6 {[%emt 0:10:59]} 20. Bxf6 {[%emt 0:00:06]} gxf6 {[%emt 0:00:37]} 21. Rc1 {[%emt 0:01:05]} Rd4 {[%emt 0:04:26]} 22. Rfd1 {[%emt 0:03:48]} e5 {[%emt 0:10:01]} 23. f3 {[%emt 0:09:14]} Nc5 {[%emt 0:01:40]} 24. Nf2 {[%emt 0:00:41]} Rxd1+ {[%emt 0:09:33]} 25. Rxd1 {[%emt 0:00:36]} f5 {[%emt 0:00:04]} 26. Nd3 {[%emt 0:01:49]} Rd8 1/2-1/2

[Event "WTCC-65 2018"]
[Site "Radebeul"]
[Date "2018.07.09"]
[Round "3"]
[White "Bellin, Robert"]
[Black "Harestad, Thor Geir"]
[Result "1/2-1/2"]
[ECO "B40"]
[WhiteElo "2333"]
[BlackElo "2205"]
[Annotator "NA"]
[PlyCount "69"]
[EventDate "2018.07.07"]
[EventType "team-tourn"]
[EventCountry "GER"]
[SourceTitle "playchess.com"]
[Source "ChessBase"]
[SourceQuality "1"]
[TimeControl "40/5400+30:1800+30"]

1. e4 {[%emt 0:02:10]} c5 {[%emt 0:00:00]} 2. Nf3 {[%emt 0:00:07]} e6 {[%emt 0:00:00]} 3. b3 {[%emt 0:02:03]} Nc6 {[%emt 0:02:08]} 4. Bb2 {[%emt 0:00:26]} d6 {[%emt 0:00:50]} 5. Bb5 {[%emt 0:02:01]} Nge7 {[%emt 0:02:55]} 6. d4 {[%emt 0:05:00]} cxd4 {[%emt 0:00:42]} 7. Nxd4 {[%emt 0:00:13]} a6 {[%emt 0:01:22]} 8. Be2 {[%emt 0:03:53]} e5 {[%emt 0:02:08]} 9. Nxc6 {[%emt 0:03:15]} bxc6 {[%emt 0:00:39]} 10. h4 {[%emt 0:02:53]} Be6 {[%emt 0:06:56]} 11. Bg4 {[%emt 0:11:55]} Qd7 {[%emt 0:04:06]} 12. Bxe6 {[%emt 0:00:07]} Qxe6 {[%emt 0:00:22]} 13. h5 {[%emt 0:05:05]} h6 {[%emt 0:07:15]} 14. Qe2 {[%emt 0:02:15]} Nc8 {[%emt 0:02:22]} 15. Nd2 {[%emt 0:02:14]} Be7 {[%emt 0:08:18]} 16. Nc4 {[%emt 0:10:47]} Bg5 {[%emt 0:03:16]} 17. Rd1 {[%emt 0:02:18]} O-O {[%emt 0:03:03]} 18. Rh3 {[%emt 0:02:40]} f5 $16 {[%emt 0:08:15]} 19. Rhd3 {[%emt 0:08:46]} Be7 {[%emt 0:16:04]} 20. exf5 {[%emt 0:06:19]} Rxf5 {[%emt 0:01:44]} 21. Ne3 {[%emt 0:00:47]} Rf8 {[%emt 0:05:04]} 22. g4 {[%emt 0:08:55]} Nb6 {[%emt 0:05:37]} 23. c4 {[%emt 0:02:08]} Rad8 {[%emt 0:03:49]} 24. Nf5 {[%emt 0:01:50]} Nc8 {[%emt 0:03:07]} 25. Qe4 {[%emt 0:01:25]} c5 {[%emt 0:01:33]} 26. f4 {[%emt 0:01:46]} Rfe8 {[%emt 0:01:40]} 27. fxe5 {[%emt 0:02:53]} Bf6 {[%emt 0:04:31]} 28. Re3 {[%emt 0:03:25]} dxe5 {[%emt 0:00:58]} 29. Rd5 {[%emt 0:02:37]} Rxd5 {[%emt 0:00:31]} 30. Qxd5 {[%emt 0:00:52]} Qxd5 {[%emt 0:00:50]} 31. cxd5 {[%emt 0:00:02]} Nb6 {[%emt 0:00:42]} 32. d6 {[%emt 0:00:27]} Kf7 {[%emt 0:00:25]} 33. Ba3 {[%emt 0:01:19]} Nd7 {[%emt 0:00:30]} 34. Re4 {[%emt 0:00:29]} Rc8 {[%emt 0:00:30]} 35. Rc4 {[%emt 0:03:01]} 1/2-1/2

[Event "WTCC-65 2018"]
[Site "Radebeul"]
[Date "2018.07.09"]
[Round "3"]
[White "Rotstein, Jefim"]
[Black "Klundt, Klaus"]
[Result "1/2-1/2"]
[ECO "B47"]
[WhiteElo "2318"]
[BlackElo "2318"]
[Annotator "NA"]
[PlyCount "68"]
[EventDate "2018.07.07"]
[EventType "team-tourn"]
[EventCountry "GER"]
[SourceTitle "playchess.com"]
[Source "ChessBase"]
[SourceQuality "1"]
[TimeControl "40/5400+30:1800+30"]

1. e4 {[%emt 0:00:00]} c5 {[%emt 0:00:00]} 2. Nf3 {[%emt 0:00:00]} e6 {[%emt 0:00:00]} 3. d4 {[%emt 0:00:51]} cxd4 {[%emt 0:00:00]} 4. Nxd4 {[%emt 0:00:09]} Nc6 {[%emt 0:00:06]} 5. Nc3 {[%emt 0:00:24]} Qc7 {[%emt 0:00:12]} 6. g3 {[%emt 0:00:21]} a6 {[%emt 0:00:08]} 7. Bg2 {[%emt 0:00:14]} d6 {[%emt 0:00:49]} 8. O-O {[%emt 0:00:33]} Bd7 {[%emt 0:00:16]} 9. a4 {[%emt 0:04:45]} Nf6 {[%emt 0:02:33]} 10. h3 {[%emt 0:01:21]} Be7 {[%emt 0:01:28]} 11. Nde2 {[%emt 0:01:19]} O-O {[%emt 0:05:09] LiveBook: 8 Games} 12. g4 {[%emt 0:01:06] B80: Sicilian Scheveningen: 6 g3 and 6 Be3, including English Attack} (12. Be3 Rab8 13. g4 Bc8 14. g5 Nd7 15. f4 b5 16. axb5 axb5 17. Qd3 Nc5 18. Bxc5 dxc5 19. Nxb5 c4 20. Qxc4 {½-½ (58) Ponkratov,P (2604)-Belous,V (2557) Khanty-Mansiysk 2015}) 12... Rac8 {[%emt 0:04:25]} 13. Be3 {[%emt 0:02:29]} Nb4 {[%emt 0:06:20]} 14. g5 {[%emt 0:01:47]} Ne8 {[%emt 0:01:28]} 15. f4 $146 {[%emt 0:01:12]} g6 {[%emt 0:01:48]} (15... d5 $5) 16. Ng3 {[%emt 0:07:46]} Ng7 {[%emt 0:04:09]} 17. Rf2 {[%emt 0:02:37]} f6 {[%emt 0:03:46]} 18. h4 {[%emt 0:02:46]} fxg5 {[%emt 0:07:00]} 19. hxg5 {[%emt 0:00:17]} e5 {[%emt 0:00:23]} 20. f5 {[%emt 0:16:46]} gxf5 {[%emt 0:01:02]} 21. exf5 {[%emt 0:00:12]} Nxf5 {[%emt 0:00:17]} 22. Nxf5 {[%emt 0:02:51]} Bxf5 {[%emt 0:00:34]} 23. Nd5 {[%emt 0:10:46]} Nxd5 {[%emt 0:00:47]} 24. Qxd5+ {[%emt 0:01:31]} Kg7 {[%emt 0:02:07]} 25. Qxb7 {[%emt 0:09:27]} Qxb7 {[%emt 0:09:59]} 26. Bxb7 {[%emt 0:00:05]} Rxc2 {[%emt 0:00:21]} 27. Rxc2 {[%emt 0:00:47]} Bxc2 {[%emt 0:00:02]} 28. Bxa6 {[%emt 0:00:54]} d5 {[%emt 0:03:05]} 29. a5 {[%emt 0:03:08]} d4 {[%emt 0:00:17]} 30. Bf2 {[%emt 0:03:47]} Bc5 $15 {[%emt 0:08:42]} 31. b4 {[%emt 0:05:30]} Bxb4 {[%emt 0:03:37]} 32. Bb7 {[%emt 0:00:41]} Bc3 {[%emt 0:08:02]} 33. Ra3 {[%emt 0:01:45]} Bb4 {[%emt 0:10:05]} 34. Ra1 {[%emt 0:05:06]} Bc3 {[%emt 0:04:09]} 1/2-1/2

[Event "WTCC-65 2018"]
[Site "Radebeul"]
[Date "2018.07.09"]
[Round "3"]
[White "Schulze, Ulrich"]
[Black "Glatthor, Thomas"]
[Result "1-0"]
[ECO "A41"]
[WhiteElo "2313"]
[BlackElo "2066"]
[Annotator "NA"]
[PlyCount "159"]
[EventDate "2018.07.07"]
[EventType "team-tourn"]
[EventCountry "GER"]
[SourceTitle "playchess.com"]
[Source "ChessBase"]
[SourceQuality "1"]
[TimeControl "40/5400+30:1800+30"]

1. d4 {[%emt 0:00:00]} d6 {[%emt 0:00:00]} 2. Nf3 {[%emt 0:00:00]} Nf6 {[%emt 0:00:34]} 3. g3 {[%emt 0:00:29]} g6 {[%emt 0:00:03]} 4. Bg2 {[%emt 0:00:06]} Bg7 {[%emt 0:00:08]} 5. c4 {[%emt 0:00:17]} Nbd7 {[%emt 0:03:42]} 6. Nc3 {[%emt 0:00:24]} c6 {[%emt 0:00:22]} 7. O-O {[%emt 0:00:11]} O-O {[%emt 0:00:12]} 8. h3 {[%emt 0:01:10]} e5 {[%emt 0:00:26]} 9. e4 {[%emt 0:00:06]} Re8 {[%emt 0:01:10]} 10. Re1 {[%emt 0:03:16]} h6 {[%emt 0:01:04]} 11. Be3 {[%emt 0:00:39] E69: King's Indian: Fianchetto: 6...Nbd7 7 0-0 e5 8 e4 c6 9 h3} Qe7 {[%emt 0:02:50]} 12. Qc2 {[%emt 0:02:40]} b6 {[%emt 0:10:35]} 13. d5 {[%emt 0:11:49]} c5 {[%emt 0:00:46]} 14. a3 $146 {[%emt 0:00:09]} ({Predecessor:} 14. Rf1 Rf8 15. Ne1 Nh5 16. Qd1 a6 17. a4 Rb8 18. Nd3 Kh7 {1-0 (37) Thomassen,J (2400)-Pastor Pons,P (2143) San Sebastian 2012}) 14... Ba6 {[%emt 0:10:21]} 15. Nd2 {[%emt 0:06:29]} Reb8 {[%emt 0:02:26]} 16. b4 {[%emt 0:03:39]} Bc8 {[%emt 0:02:53]} 17. Nb3 {[%emt 0:03:46]} a5 {[%emt 0:05:49]} 18. bxa5 {[%emt 0:05:54]} bxa5 {[%emt 0:00:03]} 19. a4 {[%emt 0:01:16]} Nb6 {[%emt 0:03:34]} 20. Nb5 {[%emt 0:00:21]} Nh5 {[%emt 0:03:41]} 21. Bd2 {[%emt 0:04:11]} Bd7 {[%emt 0:09:23]} 22. Nxa5 {[%emt 0:00:58]} f5 {[%emt 0:03:53]} 23. Nc6 {[%emt 0:03:55]} Bxc6 {[%emt 0:03:01]} 24. dxc6 {[%emt 0:00:12]} Rf8 {[%emt 0:02:38]} (24... f4 $142 25. a5 Nc8) 25. a5 {[%emt 0:01:58]} Nc8 {[%emt 0:01:25]} 26. exf5 {[%emt 0:04:43]} gxf5 {[%emt 0:05:34]} 27. Bf3 {[%emt 0:02:15]} Nf6 {[%emt 0:06:34]} 28. Qxf5 {[%emt 0:03:44]} e4 {[%emt 0:07:28]} 29. Rac1 {[%emt 0:05:18]} Qf7 {[%emt 0:05:25]} 30. Bxe4 {[%emt 0:02:40]} Ne7 {[%emt 0:00:29]} 31. Qf3 {[%emt 0:00:24]} Nxe4 {[%emt 0:02:01]} 32. Qxf7+ {[%emt 0:00:23]} Rxf7 {[%emt 0:00:27]} 33. Rxe4 {[%emt 0:00:07]} Nxc6 {[%emt 0:00:21]} 34. Rce1 {[%emt 0:06:55]} Nxa5 {[%emt 0:02:15]} 35. Re8+ {[%emt 0:03:36]} Rf8 {[%emt 0:00:14]} 36. Rxf8+ {[%emt 0:00:35]} Kxf8 {[%emt 0:00:27]} 37. Nxd6 {[%emt 0:04:29]} Nb3 {[%emt 0:01:39]} 38. Be3 {[%emt 0:03:40]} Nd4 {[%emt 0:02:38]} 39. Rb1 {[%emt 0:01:06]} Rd8 {[%emt 0:00:32]} 40. Ne4 {[%emt 0:00:55]} Rc8 {[%emt 0:00:37]} 41. Kg2 {[%emt 0:30:20]} h5 {[%emt 0:03:58]} 42. Rb7 {[%emt 0:00:00]} Ne6 {[%emt 0:01:52]} 43. Rd7 {[%emt 0:00:00]} h4 {[%emt 0:05:38]} 44. Rd5 {[%emt 0:00:00]} hxg3 {[%emt 0:00:16]} 45. fxg3 {[%emt 0:00:00]} Bd4 {[%emt 0:06:01]} 46. Bxd4 {[%emt 0:00:00]} cxd4 {[%emt 0:00:10]} 47. c5 {[%emt 0:00:00]} Ra8 {[%emt 0:01:16]} 48. Ng5 {[%emt 0:00:00]} Nxg5 {[%emt 0:03:53]} 49. Rxg5 {[%emt 0:00:00]} Rd8 {[%emt 0:00:04]} 50. c6 {[%emt 0:00:00]} d3 {[%emt 0:01:19]} 51. c7 {[%emt 0:00:00]} Rc8 {[%emt 0:00:14]} 52. Rd5 {[%emt 0:00:00]} Rxc7 {[%emt 0:00:02]} 53. Rxd3 {[%emt 0:00:00]} Kg7 54. g4 {[%emt 0:00:00]} Rc1 {[%emt 0:01:46]} 55. Kg3 {[%emt 0:00:00]} Rb1 {[%emt 0:00:33]} 56. h4 {[%emt 0:00:00]} Rg1+ {[%emt 0:00:24]} 57. Kf4 {[%emt 0:00:00]} Rb1 {[%emt 0:00:33]} 58. Rd7+ {[%emt 0:00:00]} Kf6 {[%emt 0:01:05]} 59. Rd6+ {[%emt 0:00:00]} Ke7 {[%emt 0:00:50]} 60. Ra6 {[%emt 0:00:00]} Kf7 {[%emt 0:01:32]} 61. h5 {[%emt 0:00:00]} Kg7 {[%emt 0:00:55]} 62. Kg5 {[%emt 0:00:00]} Rb5+ {[%emt 0:00:16]} 63. Kh4 {[%emt 0:00:00]} Rb1 {[%emt 0:00:39]} 64. h6+ {[%emt 0:00:00]} Kh7 {[%emt 0:00:12]} 65. Kh5 {[%emt 0:00:00]} Rh1+ {[%emt 0:03:38]} 66. Kg5 {[%emt 0:00:00]} Rc1 {[%emt 0:01:27]} 67. Ra7+ {[%emt 0:00:00]} Kh8 {[%emt 0:00:46]} 68. Kh5 {[%emt 0:00:00]} Rb1 {[%emt 0:00:44]} 69. g5 {[%emt 0:00:00]} Rb5 {[%emt 0:00:50]} 70. Re7 {[%emt 0:00:00]} Rc5 {[%emt 0:00:17]} 71. Kg6 {[%emt 0:00:00]} Rc6+ {[%emt 0:00:29]} 72. Kf5 {[%emt 0:00:00]} Rc5+ {[%emt 0:00:23]} 73. Kf6 {[%emt 0:00:00]} Rc6+ {[%emt 0:00:46]} 74. Re6 {[%emt 0:00:00]} Rc8 {[%emt 0:02:13]} 75. g6 {[%emt 0:00:00]} Rf8+ {[%emt 0:00:20]} 76. Ke5 {[%emt 0:00:00]} Ra8 {[%emt 0:00:34]} 77. Rd6 {[%emt 0:00:00]} Re8+ {[%emt 0:00:50]} 78. Kf6 {[%emt 0:00:00]} Rf8+ {[%emt 0:00:23]} 79. Ke7 {[%emt 0:00:00]} Rg8 {[%emt 0:01:22]} 80. Rd8 {[%emt 0:00:00]} 1-0

[Event "WTCC-65 2018"]
[Site "Radebeul"]
[Date "2018.07.09"]
[Round "3"]
[White "Mishuchkov, Nikolai M."]
[Black "Hassenrueck, Helmut"]
[Result "1/2-1/2"]
[ECO "A46"]
[WhiteElo "2311"]
[BlackElo "2189"]
[Annotator "NA"]
[PlyCount "68"]
[EventDate "2018.07.07"]
[EventType "team-tourn"]
[EventCountry "GER"]
[SourceTitle "playchess.com"]
[Source "ChessBase"]
[SourceQuality "1"]
[TimeControl "40/5400+30:1800+30"]

1. Nf3 {[%emt 0:00:00]} Nf6 {[%emt 0:00:00]} 2. d4 {[%emt 0:00:00]} e6 {[%emt 0:00:00]} 3. e3 {[%emt 0:00:05]} b6 {[%emt 0:00:29]} 4. Bd3 {[%emt 0:01:31]} Bb7 {[%emt 0:00:04]} 5. O-O {[%emt 0:00:16]} d5 {[%emt 0:00:49]} 6. c4 {[%emt 0:00:34]} Bd6 {[%emt 0:00:33]} 7. cxd5 {[%emt 0:00:13]} exd5 {[%emt 0:00:11]} 8. b4 {[%emt 0:00:06] E14: Queen's Indian: Classical Variation (4 e3)} (8. b3 Qe7 9. Nc3 a6 10. Bb2 Nbd7 11. Ne2 Ne4 12. Ng3 g6 13. Rc1 O-O 14. Qc2 a5 15. Rfd1 Nxg3 16. hxg3 {½-½ (36) Vidit,S (2689)-Karjakin,S (2785) Doha 2016}) 8... O-O {[%emt 0:00:35]} 9. Qb3 {[%emt 0:00:11]} a5 {[%emt 0:01:00]} 10. b5 {[%emt 0:00:39]} a4 {[%emt 0:01:10]} 11. Qc2 {[%emt 0:00:57]} Qe7 $146 {[%emt 0:01:50]} ({Predecessor:} 11... Nbd7 12. Ba3 Ne4 13. Bxd6 cxd6 14. Nbd2 Qe7 15. Rfc1 Rfe8 {½-½ (33) Gaprindashvili,N (2299)-Sveshnikov,E (2509) Yerevan 2016}) 12. Nc3 {[%emt 0:07:10]} a3 {[%emt 0:02:54]} 13. Bd2 {[%emt 0:06:40]} Nbd7 {[%emt 0:01:57]} 14. Bf5 {[%emt 0:24:16]} Ne4 {[%emt 0:09:48]} 15. Qb3 {[%emt 0:04:00]} Ndf6 {[%emt 0:03:59]} 16. Rad1 {[%emt 0:04:52]} g6 {[%emt 0:03:58]} 17. Bh3 {[%emt 0:00:06]} Kg7 {[%emt 0:04:02]} 18. Nxe4 {[%emt 0:06:00]} dxe4 {[%emt 0:06:40]} 19. Ne5 {[%emt 0:00:08]} Bd5 {[%emt 0:00:49]} 20. Qc2 {[%emt 0:01:02]} h5 {[%emt 0:04:49]} 21. Nc6 {[%emt 0:04:27]} Qe8 {[%emt 0:02:58]} 22. Rb1 {[%emt 0:00:27]} Ng4 {[%emt 0:01:28]} 23. Bxg4 {[%emt 0:16:13]} hxg4 {[%emt 0:00:04]} 24. Bb4 $19 {[%emt 0:00:19]} Rh8 {[%emt 0:03:17]} 25. Bxd6 {[%emt 0:00:16]} cxd6 {[%emt 0:00:11]} 26. Rfc1 {[%emt 0:02:49]} Qe6 {[%emt 0:05:30]} 27. Nb4 {[%emt 0:00:09]} Rac8 {[%emt 0:03:02]} 28. Qd2 {[%emt 0:00:49]} Bc4 {[%emt 0:03:52]} 29. d5 {[%emt 0:00:42]} Qe5 {[%emt 0:02:13]} 30. Qc3 {[%emt 0:02:35]} Bxb5 {[%emt 0:05:47]} 31. Qxe5+ {[%emt 0:00:22]} dxe5 {[%emt 0:00:03]} 32. Nc6 {[%emt 0:00:33]} Bxc6 {[%emt 0:01:06]} 33. dxc6 {[%emt 0:01:40]} Rhd8 {[%emt 0:01:30]} 34. g3 {[%emt 0:08:09]} Rd2 {[%emt 0:01:57]} 1/2-1/2